fUSD/lending_fUSD_20250109
["ID","MTS","AMOUNT","RATE_DAILY","PERIOD"]
[348349278,1736460637688,-433.64954282,9.843e-05,2]
[348349279,1736460637700,-500.0,9.843e-05,2]
[348349280,1736460637709,-500.0,9.843e-05,2]
[348349281,1736460637718,-500.0,9.843e-05,2]
[348349282,1736460637728,-500.0,9.843e-05,2]
[348349283,1736460637737,-500.0,9.843e-05,2]
[348349284,1736460637747,-507.64647025,9.843e-05,2]
[348349285,1736460637756,-500.0,9.843e-05,2]
[348349286,1736460637765,-500.0,9.843e-05,2]
[348349287,1736460637775,-830.89,9.843e-05,2]
[348349288,1736460637785,-500.0,9.843e-05,2]
[348349289,1736460637794,-186.66697161,9.843e-05,2]
[348349290,1736460637803,-1084.81,9.843e-05,2]
[348349291,1736460637813,-500.0,9.843e-05,2]
[348349292,1736460637822,-500.0,9.843e-05,2]
[348349294,1736460637831,-613.64375269,9.844e-05,2]
[348349296,1736460637841,-500.0,9.844e-05,2]
[348349298,1736460637850,-506.43093275,9.844e-05,2]
[348349300,1736460637859,-500.0,9.844e-05,2]
[348349302,1736460637868,-239.57452358,9.844e-05,2]
[348349304,1736460637877,-500.0,9.844e-05,2]
[348349306,1736460637887,-500.0,9.844e-05,2]
[348349308,1736460637896,-500.0,9.844e-05,2]
[348349310,1736460637905,-500.0,9.844e-05,2]
[348349312,1736460637913,-1000.0,9.844e-05,2]
[348349314,1736460637923,-500.43833444,9.844e-05,2]
[348349316,1736460637933,-500.39785179,9.844e-05,2]
[348349318,1736460637942,-500.0,9.844e-05,2]
[348349320,1736460637954,-500.61647819,9.844e-05,2]
[348349322,1736460637963,-500.0,9.844e-05,2]
[348349324,1736460637972,-500.76664641,9.844e-05,2]
[348349326,1736460637982,-500.0,9.844e-05,2]
[348349328,1736460637992,-500.0,9.844e-05,2]
[348349330,1736460638001,-500.0,9.844e-05,2]
[348349332,1736460638011,-500.0,9.844e-05,2]
[348349334,1736460638020,-500.0,9.844e-05,2]
[348349335,1736460638030,-500.0,9.844e-05,2]
[348349337,1736460638039,-500.0,9.844e-05,2]
[348349339,1736460638048,-500.0,9.844e-05,2]
[348349341,1736460638057,-500.0,9.844e-05,2]
[348349343,1736460638066,-500.0,9.844e-05,2]
[348349345,1736460638077,-500.0,9.844e-05,2]
[348349347,1736460638086,-500.0,9.844e-05,2]
[348349349,1736460638095,-500.0,9.844e-05,2]
[348349351,1736460638105,-500.0,9.844e-05,2]
[348349353,1736460638115,-500.0,9.844e-05,2]
[348349355,1736460638124,-588.83,9.844e-05,2]
[348349357,1736460638134,-500.0,9.844e-05,2]
[348349359,1736460638144,-500.0,9.844e-05,2]
[348349361,1736460638153,-500.0,9.844e-05,2]
[348349363,1736460638163,-500.0,9.844e-05,2]
[348349365,1736460638172,-500.0,9.844e-05,2]
[348349367,1736460638181,-500.0,9.844e-05,2]
[348349369,1736460638190,-500.0,9.844e-05,2]
[348349371,1736460638199,-500.0,9.844e-05,2]
[348349373,1736460638208,-500.0,9.844e-05,2]
[348349375,1736460638218,-500.0,9.844e-05,2]
[348349377,1736460638227,-613.48,9.844e-05,2]
[348349379,1736460638236,-500.0,9.844e-05,2]
[348349381,1736460638245,-500.0,9.844e-05,2]
[348349383,1736460638255,-500.0,9.844e-05,2]
[348349385,1736460638265,-500.0,9.844e-05,2]
[348349387,1736460638275,-500.0,9.844e-05,2]
[348349389,1736460638284,-500.0,9.844e-05,2]
[348349391,1736460638294,-500.0,9.844e-05,2]
[348349393,1736460638303,-500.0,9.844e-05,2]
[348349395,1736460638313,-500.0,9.844e-05,2]
[348349396,1736460638323,-500.0,9.844e-05,2]
[348349398,1736460638331,-500.0,9.844e-05,2]
[348349400,1736460638341,-623.59,9.844e-05,2]
[348349402,1736460638351,-500.0,9.844e-05,2]
[348349405,1736460638360,-500.0,9.844e-05,2]
[348349407,1736460638369,-500.0,9.844e-05,2]
[348349408,1736460638379,-500.0,9.844e-05,2]
[348349411,1736460638388,-500.0,9.844e-05,2]
[348349412,1736460638397,-500.0,9.844e-05,2]
[348349414,1736460638406,-500.0,9.844e-05,2]
[348349416,1736460638416,-500.0,9.844e-05,2]
[348349419,1736460638426,-500.0,9.844e-05,2]
[348349420,1736460638435,-500.0,9.844e-05,2]
[348349422,1736460638445,-500.0,9.844e-05,2]
[348349424,1736460638455,-500.0,9.844e-05,2]
[348349426,1736460638464,-500.0,9.844e-05,2]
[348349428,1736460638473,-500.0,9.844e-05,2]
[348349431,1736460638483,-500.0,9.844e-05,2]
[348349433,1736460638496,-666.09,9.844e-05,2]
[348349435,1736460638506,-500.0,9.844e-05,2]
[348349437,1736460638516,-399.78395961,9.844e-05,2]
[348349439,1736460638525,-500.0,9.844e-05,2]
[348349440,1736460638535,-2912.44,9.844e-05,2]
[348349443,1736460638544,-500.0,9.844e-05,2]
[348349444,1736460638555,-543.7685035,9.844e-05,2]
[348349447,1736460638564,-500.0,9.844e-05,2]
[348349448,1736460638574,-500.0,9.844e-05,2]
[348349450,1736460638584,-500.0,9.844e-05,2]
[348349453,1736460638593,-500.0,9.844e-05,2]
[348349454,1736460638603,-500.0,9.844e-05,2]
[348349456,1736460638612,-500.0,9.844e-05,2]
[348349458,1736460638621,-500.0,9.844e-05,2]
[348349460,1736460638631,-500.0,9.844e-05,2]
[348349462,1736460638640,-500.0,9.844e-05,2]
[348349464,1736460638649,-505.02,9.844e-05,2]
[348349466,1736460638658,-500.0,9.844e-05,2]
[348349468,1736460638667,-580.95,9.844e-05,2]
[348349470,1736460638676,-500.0,9.844e-05,2]
[348349472,1736460638686,-500.0,9.844e-05,2]
[348349474,1736460638695,-500.0,9.844e-05,2]
[348349476,1736460638707,-500.0,9.844e-05,2]
[348349478,1736460638716,-500.0,9.844e-05,2]
[348349480,1736460638726,-500.0,9.844e-05,2]
[348349503,1736460638736,-1720.05,9.844e-05,2]
[348349507,1736460638952,-500.0,9.844e-05,2]
[348349508,1736460638961,-500.0,9.844e-05,2]
[348349510,1736460638972,-500.0,9.844e-05,2]
[348349513,1736460638982,-500.0,9.844e-05,2]
[348349514,1736460638991,-500.0,9.844e-05,2]
[348349516,1736460639001,-500.0,9.844e-05,2]
[348349518,1736460639011,-500.0,9.844e-05,2]
[348349521,1736460639021,-500.0,9.844e-05,2]
[348349522,1736460639031,-500.0,9.844e-05,2]
[348349524,1736460639040,-500.0,9.844e-05,2]
[348349527,1736460639051,-614.16,9.844e-05,2]
[348349528,1736460639060,-546.29154423,9.844e-05,2]
[348349530,1736460639069,-500.0,9.844e-05,2]
[348349532,1736460639079,-500.0,9.844e-05,2]
[348349533,1736460639088,-500.0,9.844e-05,2]
[348349534,1736460639098,-500.0,9.844e-05,2]
[348349535,1736460639108,-500.0,9.844e-05,2]
[348349536,1736460639117,-4790.63,9.844e-05,2]
[348349537,1736460639126,-500.0,9.844e-05,2]
[348349538,1736460639135,-500.0,9.844e-05,2]
[348349539,1736460639145,-500.0,9.844e-05,2]
[348349540,1736460639154,-500.0,9.844e-05,2]
[348349541,1736460639164,-500.0,9.844e-05,2]
[348349543,1736460639173,-500.0,9.844e-05,2]
[348349544,1736460639182,-500.0,9.844e-05,2]
[348349547,1736460639192,-500.0,9.844e-05,2]
[348349549,1736460639204,-553.45,9.844e-05,2]
[348349551,1736460639213,-500.0,9.844e-05,2]
[348349553,1736460639223,-500.0,9.844e-05,2]
[348349555,1736460639233,-561.01,9.844e-05,2]
[348349556,1736460639241,-611.78161876,9.844e-05,2]
[348349558,1736460639251,-500.0,9.844e-05,2]
[348349560,1736460639261,-500.0,9.844e-05,2]
[348349562,1736460639270,-500.0,9.844e-05,2]
[348349564,1736460639279,-500.0,9.844e-05,2]
[348349566,1736460639289,-500.0,9.844e-05,2]
[348349568,1736460639298,-500.0,9.844e-05,2]
[348349570,1736460639308,-953.29,9.844e-05,2]
[348349573,1736460639318,-500.0,9.844e-05,2]
[348349575,1736460639327,-500.0,9.844e-05,2]
[348349577,1736460639336,-500.0,9.844e-05,2]
[348349579,1736460639345,-500.0,9.844e-05,2]
[348349581,1736460639354,-578.21,9.844e-05,2]
[348349584,1736460639364,-500.0,9.844e-05,2]
[348349586,1736460639373,-500.0,9.844e-05,2]
[348349588,1736460639382,-585.62,9.844e-05,2]
[348349590,1736460639392,-500.0,9.844e-05,2]
[348349592,1736460639402,-842.93,9.844e-05,2]
[348349594,1736460639411,-500.0,9.844e-05,2]
[348349596,1736460639421,-500.0,9.844e-05,2]
[348349598,1736460639431,-500.0,9.844e-05,2]
[348349600,1736460639440,-500.0,9.844e-05,2]
[348349602,1736460639450,-500.0,9.844e-05,2]
[348349604,1736460639459,-500.0,9.844e-05,2]
[348349606,1736460639469,-500.0,9.844e-05,2]
[348349609,1736460639478,-500.0,9.844e-05,2]
[348349611,1736460639490,-500.0,9.844e-05,2]
[348349613,1736460639500,-500.0,9.844e-05,2]
[348349615,1736460639509,-933.73,9.844e-05,2]
[348349617,1736460639519,-500.0,9.844e-05,2]
[348349619,1736460639528,-500.0,9.844e-05,2]
[348349621,1736460639538,-777.9,9.844e-05,2]
[348349623,1736460639547,-500.0,9.844e-05,2]
[348349625,1736460639556,-500.0,9.844e-05,2]
[348349627,1736460639567,-500.0,9.844e-05,2]
[348349629,1736460639576,-500.0,9.844e-05,2]
[348349631,1736460639586,-500.0,9.844e-05,2]
[348349633,1736460639595,-271.90843516,9.844e-05,2]
[348349635,1736460639605,-500.0,9.844e-05,2]
[348349637,1736460639614,-777.39,9.844e-05,2]
[348349639,1736460639623,-500.0,9.844e-05,2]
[348349640,1736460639633,-500.0,9.844e-05,2]
[348349643,1736460639643,-1051.94,9.844e-05,2]
[348349644,1736460639654,-186.23346614,9.844e-05,2]
[348349646,1736460639664,-500.0,9.844e-05,2]
[348349649,1736460639676,-500.0,9.844e-05,2]
[348349651,1736460639685,-500.0,9.844e-05,2]
[348349653,1736460639695,-748.14,9.844e-05,2]
[348349655,1736460639706,-500.0,9.844e-05,2]
[348349657,1736460639715,-500.0,9.844e-05,2]
[348349658,1736460639724,-500.0,9.844e-05,2]
[348349660,1736460639733,-500.0,9.844e-05,2]
[348349663,1736460639743,-500.0,9.844e-05,2]
[348349664,1736460639754,-500.0,9.844e-05,2]
[348349667,1736460639763,-500.0,9.844e-05,2]
[348349669,1736460639772,-604.58,9.844e-05,2]
[348349670,1736460639783,-500.0,9.844e-05,2]
[348349673,1736460639792,-500.0,9.844e-05,2]
[348349675,1736460639801,-500.0,9.844e-05,2]
[348349677,1736460639810,-500.0,9.844e-05,2]
[348349678,1736460639819,-500.0,9.844e-05,2]
[348349681,1736460639828,-500.0,9.844e-05,2]
[348349682,1736460639838,-500.0,9.844e-05,2]
[348349685,1736460639848,-1125.21,9.844e-05,2]
[348349687,1736460639857,-500.0,9.844e-05,2]
[348349688,1736460639866,-293.67817875,9.844e-05,2]
[348349690,1736460639876,-500.0,9.844e-05,2]
[348349692,1736460639885,-1254.92,9.844e-05,2]
[348349695,1736460639895,-500.0,9.844e-05,2]
[348349697,1736460639906,-1186.95,9.844e-05,2]
[348349699,1736460639916,-500.0,9.844e-05,2]
[348349701,1736460639925,-654.66,9.844e-05,2]
[348349703,1736460639935,-500.0,9.844e-05,2]
[348349704,1736460639946,-1089.5,9.844e-05,2]
[348349707,1736460639957,-500.0,9.844e-05,2]
[348349709,1736460639967,-500.0,9.844e-05,2]
[348349711,1736460639977,-500.0,9.844e-05,2]
[348349713,1736460639987,-500.0,9.844e-05,2]
[348349715,1736460639996,-1105.04,9.844e-05,2]
[348349717,1736460640005,-500.0,9.844e-05,2]
[348349719,1736460640015,-500.0,9.844e-05,2]
[348349721,1736460640024,-500.0,9.844e-05,2]
[348349723,1736460640035,-500.0,9.844e-05,2]
[348349725,1736460640044,-500.0,9.844e-05,2]
[348349727,1736460640054,-500.0,9.844e-05,2]
[348349729,1736460640063,-599.15,9.844e-05,2]
[348349731,1736460640073,-500.0,9.844e-05,2]
[348349733,1736460640083,-500.0,9.844e-05,2]
[348349734,1736460640092,-1846.82,9.844e-05,2]
[348349736,1736460640102,-500.0,9.844e-05,2]
[348349738,1736460640111,-784.54,9.844e-05,2]
[348349740,1736460640121,-563.89,9.844e-05,2]
[348349742,1736460640130,-500.0,9.844e-05,2]
[348349744,1736460640139,-500.0,9.844e-05,2]
[348349746,1736460640148,-500.0,9.844e-05,2]
[348349748,1736460640157,-500.0,9.844e-05,2]
[348349750,1736460640166,-286.89,9.844e-05,2]
[348349752,1736460640176,-500.0,9.844e-05,2]
[348349754,1736460640185,-500.0,9.844e-05,2]
[348349756,1736460640194,-556.35,9.844e-05,2]
[348349758,1736460640206,-1840.1,9.844e-05,2]
[348349760,1736460640215,-517.77,9.844e-05,2]
[348349762,1736460640224,-500.0,9.844e-05,2]
[348349764,1736460640234,-500.0,9.844e-05,2]
[348349766,1736460640243,-500.0,9.844e-05,2]
[348349768,1736460640252,-500.0,9.844e-05,2]
[348349770,1736460640261,-500.0,9.844e-05,2]
[348349771,1736460640270,-500.0,9.844e-05,2]
[348349773,1736460640279,-500.0,9.844e-05,2]
[348349775,1736460640288,-1977.12,9.844e-05,2]
[348349777,1736460640297,-500.0,9.844e-05,2]
[348349779,1736460640307,-500.0,9.844e-05,2]
[348349781,1736460640316,-500.0,9.844e-05,2]
[348349783,1736460640326,-500.0,9.844e-05,2]
[348349785,1736460640335,-1883.79,9.844e-05,2]
[348349787,1736460640344,-4228.36,9.844e-05,2]
[348349789,1736460640353,-1939.81,9.844e-05,2]
[348349791,1736460640363,-2674.83,9.844e-05,2]
[348349793,1736460640371,-1715.08,9.844e-05,2]
[348349795,1736460640381,-500.0,9.844e-05,2]
[348349797,1736460640390,-1230.49,9.844e-05,2]
[348349799,1736460640399,-2208.44,9.844e-05,2]
[348349801,1736460640408,-1577.25,9.845e-05,2]
[348349803,1736460640418,-921.14,9.845e-05,2]
[348349805,1736460640427,-2009.12,9.845e-05,2]
[348349807,1736460640436,-1247.05,9.845e-05,2]
[348349809,1736460640445,-1822.77,9.845e-05,2]
[348349811,1736460640458,-1941.35,9.845e-05,2]
[348349813,1736460640468,-2134.69,9.846e-05,2]
[348349815,1736460640477,-2832.69,9.846e-05,2]
[348349817,1736460640487,-1359.12,9.846e-05,2]
[348349819,1736460640499,-1071.2,9.846e-05,2]
[348349821,1736460640508,-1933.12,9.846e-05,2]
[348349823,1736460640518,-1153.68,9.846e-05,2]
[348349825,1736460640527,-3470.54,9.846e-05,2]
[348349826,1736460640535,-1000.0,9.846e-05,2]
[348349829,1736460640546,-500.0,9.846e-05,2]
[348349830,1736460640555,-1312.59,9.846e-05,2]
[348349833,1736460640564,-542.35,9.846e-05,2]
[348349834,1736460640575,-1042.73,9.846e-05,2]
[348349836,1736460640584,-542.35,9.846e-05,2]
[348349838,1736460640593,-764.58,9.846e-05,2]
[348349840,1736460640603,-1454.54,9.846e-05,2]
[348349842,1736460640612,-1786.91,9.847e-05,2]
[348349844,1736460640621,-1000.0,9.882e-05,2]
[348349846,1736460640631,-1000.0,9.9e-05,2]
[348349848,1736460640640,-311.19276643,9.907e-05,2]
[348349850,1736460640649,-714.69564598,9.976e-05,2]
[348349852,1736460640659,-6616.556,9.977e-05,2]
[348349854,1736460640668,-200.396,9.977e-05,2]
[348349857,1736460640678,-714.69564598,9.978e-05,2]
[348349859,1736460640687,-714.69564598,9.981e-05,2]
[348349861,1736460640696,-714.69564598,9.982e-05,2]
[348349863,1736460640710,-714.69564598,9.992e-05,2]
[348349865,1736460640719,-3090.0145133,9.992e-05,2]
[348349867,1736460640728,-1840.9544941,9.992e-05,2]
[348349869,1736460640737,-150.0,9.992e-05,2]
[348349871,1736460640747,-714.69564598,9.994e-05,2]
[348349873,1736460640755,-1429.18,9.999e-05,2]
[348349875,1736460640764,-1248.91,9.999e-05,2]
[348349876,1736460640773,-880.06,9.999e-05,2]
[348349878,1736460640783,-1966.5,9.999e-05,2]
[348349880,1736460640792,-500.0,9.999e-05,2]
[348349882,1736460640801,-1217.25,9.999e-05,2]
[348349884,1736460640811,-997.07,9.999e-05,2]
[348349886,1736460640819,-1777.4,9.999e-05,2]
[348349888,1736460640828,-3486.13,9.999e-05,2]
[348349890,1736460640838,-1156.45,9.999e-05,2]
[348349892,1736460640846,-1821.65,9.999e-05,2]
[348349894,1736460640855,-1142.613177,9.999e-05,2]
[348349896,1736460640864,-3326.71,9.999e-05,2]
[348349898,1736460640873,-159.468885,9.999e-05,2]
[348349900,1736460640883,-1183.131719,9.999e-05,2]
[348349902,1736460640892,-1649.41,9.999e-05,2]
[348349904,1736460640901,-955.36,9.999e-05,2]
[348349906,1736460640911,-500.0,9.999e-05,2]
[348349908,1736460640920,-500.0,9.999e-05,2]
[348349910,1736460640930,-500.0,9.999e-05,2]
[348349912,1736460640939,-4679.73,9.999e-05,2]
[348349914,1736460640949,-749.99,9.999e-05,2]
[348349916,1736460640961,-1643.56,9.999e-05,2]
[348349918,1736460640970,-1438.11,9.999e-05,2]
[348349920,1736460640979,-1092.5,9.999e-05,2]
[348349922,1736460640988,-953.75,9.999e-05,2]
[348349924,1736460640997,-500.0,9.999e-05,2]
[348349926,1736460641006,-2535.26,9.999e-05,2]
[348349928,1736460641015,-500.0,9.999e-05,2]
[348349930,1736460641025,-1563.32,9.999e-05,2]
[348349932,1736460641034,-1055.11,9.999e-05,2]
[348349934,1736460641043,-1752.68,9.999e-05,2]
[348349936,1736460641052,-1980.23,9.999e-05,2]
[348349938,1736460641061,-1107.76,9.999e-05,2]
[348349940,1736460641071,-1504.66,9.999e-05,2]
[348349942,1736460641079,-1188.3,9.999e-05,2]
[348349944,1736460641088,-3048.24,9.999e-05,2]
[348349945,1736460641098,-1996.98,9.999e-05,2]
[348349947,1736460641108,-500.0,9.999e-05,2]
[348349950,1736460641117,-5392.28,9.999e-05,2]
[348349951,1736460641126,-500.0,9.999e-05,2]
[348349953,1736460641135,-371.01739044,9.999e-05,2]
[348349955,1736460641144,-1913.0,0.0001,2]
[348349957,1736460641153,-78611.73040757,0.0001,2]
[348349991,1736460641544,-4973.50789703,0.0001,2]
[348349993,1736460641556,-28945.8,0.0001,2]
[348350095,1736460642399,150.0,7.977e-05,2]
[348350196,1736460643037,-150.0,9.313e-05,2]
[348350198,1736460643047,-500.0,9.843e-05,2]
[348350199,1736460643056,-150.0,9.875e-05,2]
[348350200,1736460643065,-9.98594867,0.0001,2]
[348350201,1736460643076,-1827.4623212,0.0001,2]
[348350202,1736460643089,-639.42437043,0.0001,2]
[348350203,1736460643100,-2238.99168339,0.0001,2]
[348350204,1736460643131,-4975.51485734,0.0001,2]
[348350205,1736460643142,-9686.57307998,0.0001,2]
[348350206,1736460643153,-7228.80471292,0.0001,2]
[348350207,1736460643170,-2715.84665235,0.0001,2]
[348350208,1736460643181,-274.176,0.0001,2]
[348350209,1736460643193,-665.17985081,0.0001,2]
[348350228,1736460643677,-350.79000003,9.842e-05,2]
[348350229,1736460643692,-149.20999997,9.842e-05,2]
[348350230,1736460643708,-500.0,9.843e-05,2]
[348350231,1736460643721,-6349.13033102,0.0001,2]
[348350232,1736460643738,-31869.31121265,0.0001,2]
[348350233,1736460643753,-480.05358,0.0001,2]
[348350234,1736460643771,-266697.88555835,0.0001,2]
[348350235,1736460643785,-36500.69057759,0.0001,2]
[348350236,1736460643804,-27045.86,0.0001,2]
[348350237,1736460643816,-258.84552094,0.0001,2]
[348350238,1736460643830,-489.4,0.0001,2]
[348350239,1736460644049,-550.72045438,9.843e-05,2]
[348350240,1736460644061,-2638.78623362,0.0001,2]
[348350241,1736460644075,-1079.90058144,0.0001,2]
[348350242,1736460644100,-24625.61902737,0.0001,2]
[348350243,1736460644114,-490.48661277,0.0001,2]
[348350244,1736460644129,-1473.96287924,0.0001,2]
[348350245,1736460644143,-293.6576016,0.0001,2]
[348350246,1736460644157,-5001.10300137,0.0001,2]
[348350247,1736460644170,-600.0,0.0001,2]
[348350248,1736460644184,-1724.47880905,0.0001,2]
[348350249,1736460645469,-500.0,9.842e-05,2]
[348350250,1736460645481,-500.0,9.843e-05,2]
[348350251,1736460645496,-39.449305,9.843e-05,2]
[348350252,1736460645663,-549.23818331,9.843e-05,2]
[348350253,1736460645697,-1775.0,0.0001,2]
[348350254,1736460645714,-2520.76181669,0.0001,2]
[348350255,1736460645725,-926495.95943796,0.0001,2]
[348350256,1736460645736,-15727.32130979,0.0001,2]
[348350259,1736460645755,-1000.0,0.0001,2]
[348350262,1736460645787,-367.77018903,0.0001,2]
[348350263,1736460645805,-450.25208798,0.0001,2]
[348350264,1736460649905,150.0,8.216e-05,2]
[348350266,1736461060589,570.52,8.975e-05,2]
[348350267,1736461151968,922.67,8.219e-05,2]
[348350268,1736461221040,1500.0,8.921e-05,2]
[348350269,1736461270086,250.0,8.948e-05,2]
[348350270,1736461356256,250.0,8.808e-05,2]
[348350271,1736461468336,633.63,8.697e-05,2]
[348350272,1736461512795,411.06,8.693e-05,2]
[348350273,1736461519459,170.64,6.959e-05,2]
[348350274,1736461527479,150.0,8.351e-05,2]
[348350275,1736461527770,150.0,8.696e-05,2]
[348350276,1736461542762,2000.0,8.696e-05,2]
[348350278,1736461570212,169.38,8.906e-05,2]
[348350279,1736461583234,1000.0,8.647e-05,2]
[348350280,1736461587563,150.0,8.461e-05,2]
[348350281,1736461587819,150.0,8.631e-05,2]
[348350282,1736461622584,3871.28,8.629e-05,2]
[348350307,1736461831765,-924.38,8.545e-05,2]
[348350308,1736461831775,-150.0,8.568e-05,2]
[348350309,1736461831784,-250.0,8.594e-05,2]
[348350310,1736461831795,-162.26,8.607e-05,2]
[348350311,1736461831806,-300.0,8.628e-05,2]
[348350312,1736461831817,-18038.01,8.629e-05,2]
[348350313,1736461831827,-6260.485773,9e-05,2]
[348350314,1736461831837,-1000.27,9e-05,2]
[348350315,1736461831848,-150.0,9.047e-05,2]
[348350316,1736461831857,-530.97949097,9.049e-05,2]
[348350317,1736461831869,-1000.0,9.09e-05,2]
[348350318,1736461831882,-500.0,9.09e-05,2]
[348350319,1736461831893,-150.0,9.092e-05,2]
[348350320,1736461831903,-150.0,9.174e-05,2]
[348350321,1736461831912,-150.0,9.176e-05,2]
[348350322,1736461831922,-150.0,9.238e-05,2]
[348350323,1736461831934,-150.0,9.325e-05,2]
[348350324,1736461831944,-150.0,9.355e-05,2]
[348350325,1736461831954,-150.0,9.361e-05,2]
[348350326,1736461831963,-150.0,9.383e-05,2]
[348350327,1736461831974,-150.0,9.412e-05,2]
[348350328,1736461831989,-500.0,9.451e-05,2]
[348350329,1736461832003,-150.0,9.453e-05,2]
[348350330,1736461832018,-150.0,9.469e-05,2]
[348350331,1736461832028,-420.0,9.491e-05,2]
[348350332,1736461832038,-158.544,9.5e-05,2]
[348350333,1736461832050,-436.66,9.562e-05,2]
[348350334,1736461832062,-150.0,9.576e-05,2]
[348350335,1736461832075,-150.0,9.58e-05,2]
[348350336,1736461832087,-3916.85,9.589e-05,2]
[348350337,1736461832097,-1000.0,9.728e-05,2]
[348350338,1736461832108,-231.8074,9.742e-05,2]
[348350339,1736461832119,-18267.4445,9.743e-05,2]
[348350340,1736461832130,-1864.0,9.743e-05,2]
[348350341,1736461832140,-1000.0,9.743e-05,2]
[348350342,1736461832151,-150.0,9.744e-05,2]
[348350343,1736461832162,-913.99,9.75e-05,2]
[348350344,1736461832173,-633.63,9.785e-05,2]
[348350345,1736461832182,-150.0,9.791e-05,2]
[348350346,1736461832191,-150.0,9.797e-05,2]
[348350347,1736461832202,-150.0,9.835e-05,2]
[348350348,1736461832211,-300.46,9.836e-05,2]
[348350349,1736461832221,-437.08,9.836e-05,2]
[348350350,1736461832231,-150.0,9.836e-05,2]
[348350351,1736461832241,-150.0,9.836e-05,2]
[348350352,1736461832250,-338.56,9.836e-05,2]
[348350353,1736461832260,-437.08,9.836e-05,2]
[348350354,1736461832269,-150.0,9.836e-05,2]
[348350355,1736461832279,-150.0,9.836e-05,2]
[348350356,1736461832288,-1451.2,9.84e-05,2]
[348350357,1736461832298,-1258.06,9.84e-05,2]
[348350358,1736461832307,-902.25,9.84e-05,2]
[348350359,1736461832316,-500.0,9.84e-05,2]
[348350360,1736461832326,-2667.74,9.84e-05,2]
[348350361,1736461832335,-3583.13,9.84e-05,2]
[348350362,1736461832344,-1930.58,9.84e-05,2]
[348350363,1736461832353,-1986.22,9.84e-05,2]
[348350364,1736461832363,-518.47,9.84e-05,2]
[348350365,1736461832372,-1249.39,9.84e-05,2]
[348350366,1736461832381,-1009.79,9.84e-05,2]
[348350367,1736461832391,-500.0,9.84e-05,2]
[348350368,1736461832401,-500.0,9.84e-05,2]
[348350369,1736461832410,-500.0,9.84e-05,2]
[348350370,1736461832420,-500.0,9.84e-05,2]
[348350371,1736461832429,-500.0,9.84e-05,2]
[348350372,1736461832438,-579.77,9.84e-05,2]
[348350373,1736461832447,-500.63,9.84e-05,2]
[348350374,1736461832458,-500.0,9.84e-05,2]
[348350375,1736461832467,-2383.05,9.84e-05,2]
[348350376,1736461832476,-500.0,9.84e-05,2]
[348350377,1736461832486,-500.0,9.84e-05,2]
[348350378,1736461832495,-125.32766044,9.84e-05,2]
[348350379,1736461832507,-954.05233956,9.84e-05,2]
[348350380,1736461832516,-191.14621999,9.84e-05,2]
[348350381,1736461832550,-308.85378001,9.84e-05,2]
[348350382,1736461832558,-1242.05,9.84e-05,2]
[348350383,1736461832813,-244.59948022,9.841e-05,2]
[348350384,1736461832825,-255.40051978,9.841e-05,2]
[348350385,1736461832835,-505.99,9.841e-05,2]
[348350386,1736461832845,-500.0,9.841e-05,2]
[348350387,1736461832854,-500.0,9.841e-05,2]
[348350388,1736461832863,-500.0,9.841e-05,2]
[348350389,1736461832873,-826.57,9.841e-05,2]
[348350390,1736461832883,-940.7,9.841e-05,2]
[348350391,1736461832892,-500.0,9.841e-05,2]
[348350392,1736461832902,-500.0,9.841e-05,2]
[348350393,1736461832911,-766.65,9.841e-05,2]
[348350394,1736461832920,-500.0,9.841e-05,2]
[348350395,1736461832930,-500.0,9.841e-05,2]
[348350396,1736461832940,-500.0,9.841e-05,2]
[348350397,1736461832952,-965.6,9.841e-05,2]
[348350398,1736461832965,-500.0,9.841e-05,2]